fUSD/lending_fUSD_20251118
["ID","MTS","AMOUNT","RATE_DAILY","PERIOD"]
[394321079,1763447916178,500.0,0.00041685,120]
[394321080,1763447916220,426.82,0.00041685,120]
[394321081,1763447916281,503.99052409,0.00041685,120]
[394321082,1763447918106,500.0,0.00041685,120]
[394321083,1763447918158,500.0,0.00041685,120]
[394321084,1763447918406,161.23448958,0.00041685,120]
[394321085,1763447918786,503.16179497,0.00041685,120]
[394321086,1763447919682,500.0,0.00041685,120]
[394321087,1763447920283,542.42935338,0.00041685,120]
[394321088,1763447920661,502.35963293,0.00041685,120]
[394321089,1763447920769,632.5,0.00041685,120]
[394321090,1763447921684,500.0,0.00041685,120]
[394321091,1763447923183,515.17357416,0.00041685,120]
[394321092,1763447923644,500.0,0.00041685,120]
[394321093,1763447923883,469.22086087,0.00041685,120]
[394321094,1763447924198,500.0,0.00041685,120]
[394321095,1763447924422,425.35854952,0.00041685,120]
[394321096,1763447927368,579.09,0.00041685,120]
[394321097,1763447927408,500.92297055,0.00041685,120]
[394321098,1763447927928,500.0,0.00041685,120]
[394321099,1763447928328,500.0,0.00041685,120]
[394321100,1763447929731,500.0,0.00041685,120]
[394321101,1763447929970,473.02,0.00041685,120]
[394321102,1763447930321,500.0,0.00041685,120]
[394321103,1763447931955,500.0,0.00041685,120]
[394321104,1763447933116,500.0,0.00041685,120]
[394321105,1763447933181,512.24406349,0.00041685,120]
[394321106,1763447933704,500.0,0.00041685,120]
[394321107,1763447934966,500.0,0.00041685,120]
[394321108,1763447935163,509.55794743,0.00041685,120]
[394321109,1763447935806,500.0,0.00041685,120]
[394321110,1763447935853,516.65172743,0.00041685,120]
[394321111,1763447935947,500.0,0.00041685,120]
[394321112,1763447936176,169.59,0.00041685,120]
[394321113,1763447937019,503.46630186,0.00041685,120]
[394321114,1763447937353,513.36131433,0.00041685,120]
[394321115,1763447937789,500.0,0.00041685,120]
[394321116,1763447937895,500.0,0.00041685,120]
[394321117,1763447938903,500.0,0.00041685,120]
[394321118,1763447939135,278.15712063,0.00041685,120]
[394321119,1763447941032,500.0,0.00041685,120]
[394321120,1763447941101,507.32732183,0.00041685,120]
[394321121,1763447941163,500.0,0.00041685,120]
[394321122,1763447941216,500.0,0.00041685,120]
[394321123,1763447941409,500.0,0.00041685,120]
[394321124,1763447941523,500.0,0.00041685,120]
[394321125,1763447941652,243.31,0.00041685,120]
[394321126,1763447943181,500.0,0.00041685,120]
[394321127,1763447943763,500.0,0.00041685,120]
[394321128,1763447943808,300.0,0.00041685,120]
[394321129,1763447944765,503.55662323,0.00041685,120]
[394321130,1763447945521,500.0,0.00041685,120]
[394321131,1763447947229,500.0,0.00041685,120]
[394321132,1763447947347,500.0,0.00041685,120]
[394321133,1763447948658,500.0,0.00041685,120]
[394321134,1763447949445,500.0,0.00041685,120]
[394321135,1763447950532,500.0,0.00041685,120]
[394321136,1763447951388,500.0,0.00041685,120]
[394321137,1763447952664,612.32745638,0.00041685,120]
[394321138,1763447953313,500.0,0.00041685,120]
[394321139,1763447954146,500.0,0.00041685,120]
[394321140,1763447954377,500.0,0.00041685,120]
[394321141,1763447954818,500.0,0.00041685,120]
[394321142,1763447955089,645.04,0.00041685,120]
[394321143,1763447955447,500.0,0.00041685,120]
[394321144,1763447955650,505.17944676,0.00041685,120]
[394321145,1763447956579,500.0,0.00041685,120]
[394321146,1763447956826,500.0,0.00041685,120]
[394321147,1763447958685,500.0,0.00041685,120]
[394321148,1763447958741,500.0,0.00041685,120]
[394321149,1763447962081,500.0,0.00041685,120]
[394321150,1763447962510,500.85487715,0.00041685,120]
[394321151,1763447963779,618.25187904,0.00041685,120]
[394321152,1763447964104,512.3,0.00041685,120]
[394321153,1763447964368,500.29534348,0.00041685,120]
[394321154,1763447964727,500.0,0.00041685,120]
[394321155,1763447966109,500.0,0.00041685,120]
[394321156,1763447966196,515.46192888,0.00041685,120]
[394321157,1763447966460,500.0,0.00041685,120]
[394321158,1763447966575,500.0,0.00041685,120]
[394321159,1763447966824,298.63963113,0.00041685,120]
[394321160,1763447968314,504.12091701,0.00041685,120]
[394321161,1763447969765,500.0,0.00041685,120]
[394321162,1763447970943,502.67315767,0.00041685,120]
[394321163,1763447972014,500.0,0.00041685,120]
[394321164,1763447972229,500.0,0.00041685,120]
[394321165,1763447972456,260.11775094,0.00041685,120]
[394321166,1763447974635,500.0,0.00041685,120]
[394321167,1763447974971,155.27,0.00041685,120]
[394321168,1763447975014,603.84122026,0.00041685,120]
[394321169,1763447976258,500.0,0.00041685,120]
[394321170,1763447976494,577.19560352,0.00041685,120]
[394321171,1763447976600,500.0,0.00041685,120]
[394321172,1763447976818,500.0,0.00041685,120]
[394321173,1763447976863,500.0,0.00041685,120]
[394321174,1763447977107,342.1829463,0.00041685,120]
[394321175,1763447977148,500.0,0.00041685,120]
[394321176,1763447977389,354.98,0.00041685,120]
[394321177,1763447978334,516.93474481,0.00041685,120]
[394321178,1763447978438,525.92953609,0.00041685,120]
[394321180,1763447980855,500.0,0.00041685,120]
[394321181,1763447980942,500.0,0.00041685,120]
[394321182,1763447981299,255.86214332,0.00041685,120]
[394321183,1763447982315,509.82435831,0.00041685,120]
[394321184,1763447982770,500.0,0.00041685,120]
[394321185,1763447982940,500.0,0.00041685,120]
[394321186,1763447983007,510.65,0.00041685,120]
[394321187,1763447983632,500.0,0.00041685,120]
[394321188,1763447983870,501.30689563,0.00041685,120]
[394321189,1763447984892,500.0,0.00041685,120]
[394321190,1763447986664,500.0,0.00041685,120]
[394321191,1763447986713,500.0,0.00041685,120]
[394321192,1763447986949,500.0,0.00041685,120]
[394321193,1763447986992,625.86757938,0.00041685,120]
[394321194,1763447990491,500.0,0.00041685,120]
[394321195,1763447990581,500.0,0.00041685,120]
[394321196,1763447990836,500.0,0.00041685,120]
[394321197,1763447991056,611.03703305,0.00041685,120]
[394321198,1763447992431,508.82652191,0.00041685,120]
[394321199,1763447992971,505.82416814,0.00041685,120]
[394321200,1763447994112,506.05997245,0.00041685,120]
[394321201,1763447995472,500.0,0.00041685,120]
[394321202,1763447997068,515.01685359,0.00041685,120]
[394321203,1763447997683,502.54178891,0.00041685,120]
[394321204,1763447999022,527.45699421,0.00041685,120]
[394321205,1763447999517,500.0,0.00041685,120]
[394321206,1763447999753,500.0,0.00041685,120]
[394321207,1763448003653,500.0,0.00041685,120]
[394321208,1763448003888,508.53844435,0.00041685,120]
[394321209,1763448004042,500.0,0.00041685,120]
[394321210,1763448004280,527.15720124,0.00041685,120]
[394321211,1763448005135,500.0,0.00041685,120]
[394321212,1763448005377,521.12243205,0.00041685,120]
[394321213,1763448006394,-300.0,0.00015753,2]
[394321214,1763448007493,500.0,0.00041685,120]
[394321215,1763448007752,502.4435904,0.00041685,120]
[394321216,1763448008834,500.0,0.00041685,120]
[394321217,1763448008958,530.23078266,0.00041685,120]
[394321218,1763448009732,-237.43982258,0.00015753,2]
[394321219,1763448010698,505.42379711,0.00041685,120]
[394321220,1763448012258,-817.61982258,0.00015753,2]
[394321221,1763448012302,-4054.71077884,0.00015753,2]
[394321222,1763448012538,-4310.059576,0.00015753,2]
[394321223,1763448012571,-467.32180183,0.00016286,2]
[394321224,1763448012606,-145.24724434,0.00016386,2]
[394321225,1763448012825,509.155055,0.00041685,120]
[394321226,1763448012869,-154.75275566,0.00016386,2]
[394321227,1763448012906,-1200.0,0.00016398,2]
[394321228,1763448012938,-300.0,0.00016398,2]
[394321229,1763448012971,-300.0,0.00016398,2]
[394321230,1763448013006,-2500.0,0.00016399,2]
[394321231,1763448013169,-1400.01,0.00016399,2]
[394321232,1763448014576,500.0,0.00041685,120]
[394321233,1763448014845,500.0,0.00041685,120]
[394321234,1763448015080,500.0,0.00041685,120]
[394321235,1763448015119,-3971.24203342,0.00016399,2]
[394321236,1763448015149,-153.66493073,0.00016399,2]
[394321237,1763448015181,-550.1960717,0.00016454,2]
[394321238,1763448015235,-649.8039283,0.00016454,2]
[394321239,1763448015304,392.56928864,0.00041685,120]
[394321240,1763448016899,502.49693343,0.00041685,30]
[394321241,1763448019322,507.91899904,0.00041685,120]
[394321242,1763448020553,506.74705391,0.00041685,120]
[394321243,1763448021269,500.0,0.00041685,120]
[394321244,1763448021546,500.0,0.00041685,120]
[394321245,1763448021792,456.46742166,0.00041685,120]
[394321246,1763448023671,510.44630856,0.00041685,120]
[394321247,1763448023888,500.0,0.00041685,120]
[394321248,1763448024664,419.33,0.00041685,120]
[394321249,1763448026192,500.0,0.00041685,120]
[394321250,1763448027225,-4628.7579666,0.00016455,2]
[394321251,1763448027251,-742.4940668,0.00016455,2]
[394321252,1763448027830,500.0,0.00041685,120]
[394321253,1763448028075,500.0,0.00041685,120]
[394321254,1763448028125,185.02,0.00041685,120]
[394321255,1763448028324,500.0,0.00041685,120]
[394321256,1763448028572,263.93843216,0.00041685,120]
[394321257,1763448028676,328.81465748,0.00041685,120]
[394321258,1763448030140,231.86487285,0.00016355,2]
[394321259,1763448030186,513.92264429,0.00041685,120]
[394321260,1763448030616,500.0,0.00041685,120]
[394321261,1763448030893,500.0,0.00041685,120]
[394321262,1763448031139,464.4430329,0.00041685,120]
[394321263,1763448033664,505.2097402,0.00041685,120]
[394321264,1763448034472,500.0,0.00041685,120]
[394321265,1763448034605,503.69317949,0.00041685,120]
[394321266,1763448034708,574.27619843,0.00041685,120]
[394321267,1763448034964,879.96,0.00041685,120]
[394321268,1763448035418,879.96,0.00041685,120]
[394321269,1763448035666,879.96,0.00041685,120]
[394321270,1763448035945,879.96,0.00041685,120]
[394321271,1763448036187,879.96,0.00041685,120]
[394321272,1763448036433,879.96,0.00041685,120]
[394321273,1763448036477,500.0,0.00041685,120]
[394321274,1763448036703,879.96,0.00041685,120]
[394321275,1763448036749,510.32035982,0.00041685,120]
[394321276,1763448036889,500.0,0.00041685,120]
[394321277,1763448036950,879.96,0.00041685,120]
[394321278,1763448037122,511.19729663,0.00041685,120]
[394321279,1763448037186,879.96,0.00041685,120]
[394321280,1763448037436,879.96,0.00041685,120]
[394321281,1763448037660,505.09371842,0.00041685,120]
[394321282,1763448037710,879.96,0.00041685,120]
[394321283,1763448038172,879.96,0.00041685,120]
[394321284,1763448038415,879.96,0.00041685,120]
[394321285,1763448038641,500.0,0.00041685,120]
[394321286,1763448038689,879.96,0.00041685,120]
[394321287,1763448038915,879.96,0.00041685,120]
[394321288,1763448039277,527.25769121,0.00041685,120]
[394321289,1763448039328,571.94092659,0.00041685,120]
[394321290,1763448039389,879.96,0.00041685,120]
[394321291,1763448039445,879.96,0.00041685,120]
[394321292,1763448039496,504.61062304,0.00041685,120]
[394321293,1763448039644,879.96,0.00041685,120]
[394321294,1763448039885,879.96,0.00041685,120]
[394321295,1763448040122,879.96,0.00041685,120]
[394321296,1763448040367,879.96,0.00041685,120]
[394321297,1763448040604,879.96,0.00041685,120]
[394321298,1763448040840,879.96,0.00041685,120]
[394321299,1763448040960,506.64084532,0.00041685,120]
[394321300,1763448041094,880.16049575,0.00041685,120]
[394321301,1763448042994,503.41550008,0.00041685,120]
[394321302,1763448043137,610.69,0.00041685,120]
[394321303,1763448044588,1145.9,0.00041685,120]
[394321304,1763448044837,1145.9,0.00041685,120]
[394321305,1763448044979,504.09942284,0.00041685,120]
[394321306,1763448045070,1145.9,0.00041685,120]
[394321307,1763448045330,1145.9,0.00041685,120]
[394321308,1763448045581,1145.9,0.00041685,120]
[394321309,1763448045824,1145.9,0.00041685,120]
[394321310,1763448046060,1145.9,0.00041685,120]
[394321311,1763448046303,1145.9,0.00041685,120]
[394321312,1763448046557,1145.9,0.00041685,120]
[394321313,1763448046803,1145.9,0.00041685,120]
[394321314,1763448046850,512.41283602,0.00041685,120]
[394321315,1763448047070,1145.9,0.00041685,120]
[394321316,1763448047335,1145.9,0.00041685,120]
[394321317,1763448047577,1145.9,0.00041685,120]
[394321318,1763448047815,1145.9,0.00041685,120]
[394321319,1763448048054,1145.9,0.00041685,120]
[394321320,1763448048295,1145.9,0.00041685,120]
[394321321,1763448048521,1145.9,0.00041685,120]
[394321322,1763448048776,1145.9,0.00041685,120]
[394321323,1763448049012,1145.9,0.00041685,120]
[394321324,1763448049255,503.27281131,0.00041685,120]
[394321325,1763448049305,1145.9,0.00041685,120]
[394321326,1763448049540,1145.9,0.00041685,120]
[394321327,1763448049773,1145.9,0.00041685,120]
[394321328,1763448050224,1145.9,0.00041685,120]
[394321329,1763448050482,1145.99984941,0.00041685,120]
[394321330,1763448051196,510.10568511,0.00041685,120]
[394321331,1763448051952,514.28150168,0.00041685,120]
[394321332,1763448054503,500.0,0.00041685,120]
[394321333,1763448054598,196.49065005,0.00041685,120]
[394321334,1763448055004,1679.19,0.00015902,2]
[394321335,1763448057545,-500.0,0.000166,6]
[394321336,1763448057992,504.99254592,0.00041685,120]
[394321337,1763448058714,500.0,0.00041685,120]
[394321338,1763448058949,500.0,0.00041685,120]
[394321339,1763448059181,468.54,0.00041685,120]
[394321340,1763448060077,500.0,0.00041685,120]
[394321341,1763448061364,503.18544511,0.00041685,120]
[394321343,1763448063235,502.42523419,0.00041685,120]
[394321344,1763448064795,500.0,0.00041685,120]
[394321345,1763448064966,504.52230524,0.00041685,120]
[394321346,1763448065109,515.43560721,0.00041685,120]
[394321347,1763448065334,500.0,0.00041685,120]
[394321348,1763448065583,500.0,0.00041685,120]
[394321349,1763448066864,500.0,0.00041685,120]
[394321350,1763448067099,522.16441405,0.00041685,120]
[394321351,1763448068201,500.0,0.00041685,120]
[394321352,1763448068297,500.0,0.00041685,120]
[394321353,1763448068458,536.96872625,0.00041685,120]
[394321354,1763448070356,237.439822,0.00016372,2]
[394321355,1763448072685,1047.89228849,0.00016398,2]
[394321356,1763448073794,500.0,0.00041685,120]
[394321357,1763448073880,500.0,0.00041685,120]
[394321358,1763448074027,504.54548672,0.00041685,120]
[394321359,1763448074118,500.0,0.00041685,120]
[394321360,1763448074358,500.0,0.00041685,120]
[394321361,1763448074596,500.0,0.00041685,120]
[394321362,1763448074974,500.0,0.00041685,120]
[394321363,1763448075027,500.0,0.00041685,120]
[394321364,1763448075090,505.61571971,0.00041685,120]
[394321365,1763448075136,483.02999575,0.00041685,120]
[394321366,1763448075869,500.0,0.00041685,120]
[394321367,1763448076120,542.54,0.00041685,120]
[394321368,1763448077218,511.21392481,0.00041685,120]
[394321369,1763448077917,500.0,0.00041685,120]
[394321370,1763448078163,500.0,0.00041685,120]
[394321371,1763448078395,500.0,0.00041685,120]
[394321372,1763448078633,500.0,0.00041685,120]
[394321373,1763448078718,507.27511986,0.00041685,120]
[394321374,1763448078915,413.04833581,0.00041685,120]
[394321375,1763448079106,528.07241207,0.00041685,120]
[394321376,1763448080546,500.57888005,0.00041685,120]
[394321377,1763448080998,593.37832159,0.00041685,120]
[394321378,1763448081063,510.82858398,0.00041685,120]
[394321379,1763448081347,500.0,0.00041685,120]
[394321380,1763448081592,500.0,0.00041685,120]
[394321381,1763448081847,500.0,0.00041685,120]
[394321382,1763448082082,500.0,0.00041685,120]
[394321383,1763448082321,500.0,0.00041685,120]
[394321384,1763448082444,516.22019644,0.00041685,120]
[394321385,1763448082555,500.0,0.00041685,120]
[394321386,1763448082801,574.72674442,0.00041685,120]
[394321387,1763448083185,500.0,0.00041685,120]
[394321388,1763448083443,242.23587732,0.00041685,120]
[394321389,1763448084770,501.66677791,0.00041685,120]
[394321390,1763448086923,500.0,0.00041685,120]
[394321391,1763448087160,500.0,0.00041685,120]
[394321392,1763448087407,500.0,0.00041685,120]
[394321393,1763448087636,311.19444505,0.00041685,120]
[394321394,1763448089568,500.0,0.00041685,120]
[394321395,1763448089802,500.0,0.00041685,120]
[394321396,1763448090042,500.0,0.00041685,120]
[394321397,1763448090268,331.34759643,0.00041685,120]
[394321398,1763448090966,500.02550311,0.00041685,120]
[394321399,1763448091012,500.0,0.00041685,120]
[394321400,1763448091239,500.0,0.00041685,120]
[394321401,1763448091291,500.0,0.00041685,120]
[394321402,1763448091463,500.0,0.00041685,120]
[394321403,1763448091590,500.0,0.00041685,120]
[394321404,1763448091696,500.0,0.00041685,120]
[394321405,1763448091823,500.0,0.00041685,120]
[394321406,1763448091929,500.0,0.00041685,120]
[394321407,1763448092067,196.75,0.00041685,120]
[394321408,1763448092179,500.0,0.00041685,120]
[394321409,1763448092414,500.0,0.00041685,120]
[394321410,1763448092470,500.0,0.00041685,120]
[394321411,1763448092655,500.0,0.00041685,120]
[394321412,1763448092719,425.75,0.00041685,120]
[394321413,1763448092865,500.57277967,0.00041685,120]
[394321414,1763448092913,500.0,0.00041685,120]
[394321415,1763448092953,2067.087,0.00016169,2]
[394321416,1763448093119,500.0,0.00041685,120]
[394321417,1763448093502,500.0,0.00041685,120]
[394321418,1763448093752,500.0,0.00041685,120]
[394321419,1763448094003,529.21488329,0.00041685,120]
[394321420,1763448095443,500.0,0.00041685,120]
[394321421,1763448095522,533.96289446,0.00041685,120]
[394321422,1763448096337,502.39243579,0.00041685,120]
[394321423,1763448097814,500.0,0.00041685,120]
[394321424,1763448098071,509.11414178,0.00041685,120]
[394321425,1763448100256,507.96700676,0.00041685,120]
[394321426,1763448100521,511.215483,0.00041685,120]
[394321427,1763448100607,592.85463512,0.00041685,120]
[394321428,1763448100750,500.0,0.00041685,120]
[394321429,1763448100984,261.97676712,0.00041685,120]
[394321430,1763448102665,521.52740268,0.00041685,120]
[394321431,1763448104753,521.57817985,0.00041685,120]
[394321432,1763448105239,500.78299152,0.00041685,120]
[394321433,1763448105729,500.0,0.00041685,120]
[394321434,1763448105997,500.0,0.00041685,120]
[394321435,1763448106260,500.0,0.00041685,120]
[394321436,1763448106484,500.0,0.00041685,120]
[394321437,1763448106697,528.58726719,0.00041685,120]
[394321438,1763448106759,500.0,0.00041685,120]
[394321439,1763448107138,500.0,0.00041685,120]
[394321440,1763448107641,500.0,0.00041685,120]
[394321441,1763448107688,500.0,0.00041685,120]
[394321442,1763448107890,500.0,0.00041685,120]
[394321443,1763448108129,500.0,0.00041685,120]
[394321444,1763448108351,500.0,0.00041685,120]
[394321445,1763448108589,500.0,0.00041685,120]
[394321446,1763448108732,502.12210849,0.00041685,120]
[394321447,1763448108811,500.0,0.00041685,120]
[394321448,1763448109055,500.0,0.00041685,120]
[394321449,1763448109285,500.0,0.00041685,120]
[394321450,1763448109525,500.0,0.00041685,120]
[394321451,1763448109771,500.0,0.00041685,120]
[394321452,1763448110015,500.0,0.00041685,120]
[394321453,1763448110246,500.0,0.00041685,120]
[394321454,1763448110486,502.86900712,0.00041685,120]
[394321455,1763448110534,507.99842732,0.00041685,120]
[394321456,1763448111635,500.0,0.00041685,120]
[394321457,1763448111880,500.0,0.00041685,120]
[394321458,1763448112124,500.0,0.00041685,120]
[394321459,1763448112408,479.44402617,0.00041685,120]
[394321460,1763448112690,503.69800401,0.00041685,120]
[394321461,1763448114308,2500.0,0.00016399,2]
[394321462,1763448115968,1464.56,0.00016001,2]
[394321463,1763448116016,503.64675494,0.00041685,120]
[394321464,1763448116952,500.0,0.00041685,120]
[394321465,1763448117192,510.7092065,0.00041685,120]
[394321466,1763448117564,500.0,0.00041685,120]
[394321467,1763448117801,505.20979768,0.00041685,120]
[394321468,1763448118996,500.0,0.00041685,120]
[394321469,1763448119219,511.09243845,0.00041685,120]
[394321470,1763448119681,500.0,0.00041685,120]
[394321471,1763448119933,227.20485967,0.00041685,120]
[394321472,1763448121246,619.80359174,0.00041685,120]
[394321473,1763448122267,500.0,0.00041685,120]
[394321474,1763448122502,511.55676282,0.00041685,120]
[394321475,1763448125272,500.0,0.00041685,120]
[394321476,1763448125536,524.29641347,0.00041685,120]
[394321477,1763448127549,510.20375038,0.00041685,120]
[394321478,1763448127686,771.97601666,0.00016001,2]
[394321479,1763448127719,10000.01,0.00016001,2]
[394321480,1763448127748,192.87398334,0.00016001,2]
[394321481,1763448129464,511.88597808,0.00041685,120]
[394321482,1763448131171,511.78719993,0.00041685,120]
[394321483,1763448131378,500.0,0.00041685,120]
[394321484,1763448131615,500.0,0.00041685,120]
[394321485,1763448133773,500.0,0.00041685,120]
[394321486,1763448133847,511.0935963,0.00041685,120]
[394321487,1763448134086,3196.63839846,0.00016399,2]
[394321488,1763448134234,278.53580628,0.00041685,120]
[394321489,1763448134654,505.38451324,0.00041685,120]
[394321490,1763448135026,500.0,0.00041685,120]
[394321491,1763448135279,504.5035029,0.00041685,120]
[394321492,1763448135741,500.0,0.00041685,120]
[394321493,1763448135993,503.47780428,0.00041685,120]
[394321494,1763448136548,503.15115296,0.00041685,120]
[394321495,1763448138596,630.06,0.00041685,120]
[394321496,1763448138949,154.06155387,0.00041685,120]
[394321497,1763448139038,3196.63839844,0.00016455,2]
[394321498,1763448139426,537.99141593,0.00041685,120]
[394321499,1763448141326,500.0,0.00041685,120]
[394321500,1763448141570,433.78146509,0.00041685,120]
[394321501,1763448143204,500.0,0.00041685,120]
[394321502,1763448144261,500.0,0.00041685,120]
[394321503,1763448144520,446.37613929,0.00041685,120]
[394321504,1763448145966,3413.85921976,0.00016399,2]
[394321505,1763448145995,883.14240696,0.00016399,2]
[394321506,1763448148223,501.1497449,0.00041685,120]
[394321507,1763448150113,516.96959092,0.00041685,120]
[394321508,1763448150943,4297.00162672,0.00016455,2]
[394321509,1763448156646,-200.0,0.000166,6]
[394321510,1763448157088,500.0,0.00041685,120]
[394321511,1763448162185,516.15054667,0.00041685,120]
[394321512,1763448164520,150.5,0.0002602,120]
[394321513,1763448164984,150.5,0.0002601,120]
[394321514,1763448165430,150.5,0.00026,120]
[394321515,1763448167202,500.0,0.00041685,120]
[394321516,1763448169430,500.0,0.00041685,120]
[394321517,1763448169655,358.12,0.00041685,120]
[394321518,1763448171262,370.75389093,0.00016055,2]
[394321519,1763448172640,480.93626398,0.00041685,120]
[394321520,1763448174176,-1190.0,0.00016472,2]
[394321521,1763448174669,500.0,0.00041685,120]
[394321522,1763448174912,249.63,0.00041685,120]
[394321523,1763448177661,503.08873033,0.00041685,120]
[394321524,1763448178493,500.0,0.00041685,120]
[394321525,1763448178731,199.35,0.00041685,120]
[394321526,1763448180904,500.0,0.00041685,120]
[394321527,1763448182100,505.86987567,0.00041685,120]
[394321528,1763448182920,500.0,0.00041685,120]
[394321529,1763448183170,500.0,0.00041685,120]
[394321530,1763448183456,346.88,0.00041685,120]
[394321531,1763448184874,1000.0,0.00015928,2]
[394321532,1763448185483,490.0,0.00041685,120]
[394321533,1763448185526,432.02843767,0.00041685,120]
[394321534,1763448187334,500.54679239,0.00041685,120]
[394321535,1763448187755,500.0,0.00041685,120]
[394321536,1763448189216,503.75198371,0.00041685,120]
[394321537,1763448191059,502.30157142,0.00041685,120]
[394321538,1763448192911,500.0,0.00041685,120]
[394321539,1763448193199,426.49,0.00041685,120]
[394321540,1763448193246,500.0,0.00041685,120]
[394321541,1763448195024,500.0,0.00041685,120]
[394321542,1763448200331,500.0,0.00041685,120]
[394321543,1763448200623,487.29,0.00041685,120]
[394321544,1763448202542,500.0,0.00041685,120]
[394321545,1763448204605,500.0,0.00041685,120]
[394321546,1763448204851,630.39,0.00041685,120]
[394321547,1763448206690,503.32971975,0.00041685,120]
[394321548,1763448206900,500.0,0.00041685,120]
[394321549,1763448208836,500.0,0.00041685,120]
[394321550,1763448210750,500.0,0.00041685,120]
[394321551,1763448218268,546.92,0.00041685,120]
[394321552,1763448220010,500.0,0.00041685,120]
[394321553,1763448226678,498.92368704,0.00041685,120]
[394321554,1763448233030,2751.0,0.00015898,2]
[394321555,1763448235407,500.0,0.00041685,120]
[394321556,1763448241612,300.0,0.00016472,2]
[394321557,1763448249296,153.66493073,0.00016399,2]
[394321561,1763448259618,166.73817413,0.00016399,2]
[394321562,1763448296014,419.26869471,0.00016055,2]
[394321563,1763448297118,563.81,0.00015883,2]
[394321564,1763448299162,-406.50592665,0.00016473,2]
[394321565,1763448299192,-500.0,0.00016473,2]
[394321566,1763448299222,-500.0,0.00016473,2]
[394321567,1763448299254,-500.0,0.00016473,2]
[394321568,1763448299284,-500.0,0.00016473,2]
[394321569,1763448299315,-500.0,0.00016473,2]
[394321570,1763448299345,-163.66,0.00016489,2]
[394321571,1763448299375,-500.0,0.00016498,2]
[394321572,1763448299409,-181.63519858,0.00016498,2]
[394321573,1763448299443,-500.0,0.00016498,2]
[394321574,1763448299475,-500.0,0.00016498,2]
[394321575,1763448301977,-1200.0,0.00016472,2]
[394321576,1763448302012,-300.0,0.00016472,2]
[394321577,1763448302046,-500.0,0.00016498,2]
[394321578,1763448302079,-500.0,0.00016498,2]
[394321579,1763448302110,-500.0,0.00016498,2]
[394321580,1763448302141,-500.0,0.00016498,2]
[394321581,1763448302172,-458.01875474,0.00016498,2]
[394321582,1763448302204,-500.0,0.00016498,2]
[394321583,1763448302237,-500.0,0.00016498,2]